[Event "1000GM Schev-C-A February 2024"]
[Site "Santa Clara"]
[Date "2024.02.24"]
[Round "2.5"]
[White "Zhou, Ruoyu"]
[Black "Zuluaga Mancilla, Cesar"]
[Result "1-0"]
[ECO "B41"]
[WhiteElo "2112"]
[BlackElo "2251"]
[Annotator "TA"]
[PlyCount "125"]
[EventDate "2024.02.13"]
[EventType "schev"]
[EventCountry "USA"]
[SourceTitle "playchess.com"]
[Source "ChessBase"]
[SourceQuality "1"]
[TimeControl "5400+30"]

{[%evp 29,125,73,96,32,46,43,15,0,14,27,64,52,56,40,59,68,85,70,156,122,305,268,335,172,168,156,193,93,169,157,335,337,302,313,309,152,162,157,132,130,146,144,135,137,231,212,351,367,354,374,369,347,321,341,322,301,302,238,228,200,175,197,192,199,296,300,305,284,260,274,262,228,596,594,585,556,1285,1275,1145,943,12829,12821,12796,12796,9381,4760,6536,6118,29955,29952,29968,29969,29970,29971,29973,29974,29972,12359]} 1. e4 {[%emt 0:00:01]} c5 {[%emt 0:07:24]} 2. Nf3 {[%emt 0:00:11]} e6 {[%emt 0:00:50]} 3. d4 {[%emt 0:00:17]} cxd4 {[%emt 0:00:06]} 4. Nxd4 {[%emt 0:00:07]} a6 {[%emt 0:00:03]} 5. c4 {[%emt 0:00:14]} Nf6 {[%emt 0:00:34]} 6. Nc3 {[%emt 0:00:10]} Qc7 {[%emt 0:00:06]} 7. a3 {[%emt 0:00:08]} b6 {[%emt 0:00:20]} 8. f4 {[%emt 0:01:16] B41: Sicilian: Kan Variation: 5 c4.} d6 {[%emt 0:00:07]} 9. Bd3 {[%emt 0:01:27]} Bb7 {[%emt 0:01:19]} 10. f5 {[%emt 0:04:00]} Nc6 {[%emt 0:00:20]} 11. Be3 {[%emt 0:01:02]} Nd8 $146 {[%emt 0:05:52]} ({Predecessor:} 11... Nxd4 12. Bxd4 Be7 13. Qe2 O-O 14. O-O Rae8 15. fxe6 fxe6 16. e5 dxe5 17. Bxe5 Qc5+ {½-½ Martin Barcelo,C (2222)-Villa Tornero,A (2321) Barcelona Tancat 2024 (6)}) 12. O-O {[%emt 0:02:34]} Be7 {[%emt 0:00:02]} 13. Rc1 {[%emt 0:02:26]} O-O {[%emt 0:00:08]} 14. b4 {[%emt 0:02:01]} Nd7 {[%emt 0:02:49]} 15. Be2 {[%emt 0:11:21]} Bf6 {[%emt 0:01:56]} 16. Qe1 {[%emt 0:06:39]} (16. fxe6 $16 fxe6 17. Bg4) 16... Ne5 {[%emt 0:02:59]} 17. Qf2 {[%emt 0:01:53]} Rc8 {[%emt 0:03:57]} 18. Rfd1 {[%emt 0:02:26]} Qb8 {[%emt 0:02:50]} (18... Nxc4 $2 {too greedy.} 19. Bxc4 Qb8 (19... Qxc4 $2 20. Na4 $18) 20. Ba2 $18) 19. Qf1 {[%emt 0:03:42]} Qa8 {[%emt 0:10:54]} 20. Na4 {[%emt 0:05:26]} Nd7 {[%emt 0:00:04]} 21. Nf3 {[%emt 0:05:22]} Bc6 $1 {[%emt 0:02:16]} 22. Nxb6 {[%emt 0:01:14]} Nxb6 {[%emt 0:00:10]} 23. Bxb6 {[%emt 0:00:10]} Qb8 {[%emt 0:06:14]} ({Better is} 23... Bxe4 $14 24. Rxd6 a5) 24. c5 {[%emt 0:01:37]} Nb7 $2 {[%emt 0:01:03]} (24... Bxe4 $16 25. Rxd6 a5 26. bxa5 exf5) 25. Bxa6 $18 {[%emt 0:01:14]} Bxe4 {[%emt 0:01:16]} 26. Bxb7 {[%emt 0:05:08]} (26. fxe6 $142 fxe6 27. Qe2) 26... Qxb7 $18 {[%emt 0:00:24]} 27. Rxd6 {[%emt 0:00:59]} Bxf5 {[%emt 0:01:25]} 28. Qb5 {[%emt 0:03:08]} (28. a4 $18 {is more deadly.}) 28... Qe4 {[%emt 0:03:45]} (28... Be4 $16) 29. c6 $18 {[%emt 0:12:28]} g5 $2 {[%emt 0:05:57]} (29... Qf4 $16 30. Rdd1 e5) 30. Qc4 $18 {[%emt 0:04:39]} g4 {[%emt 0:03:18]} 31. Qxe4 {[%emt 0:01:45]} Bxe4 {[%emt 0:00:04]} 32. Nd4 {[%emt 0:05:32]} (32. Rc4 $18 Be7 33. Rxe4 Bxd6 34. Rxg4+ Kh8 35. Rc4) 32... Be5 {[%emt 0:01:56]} 33. Rd7 {[%emt 0:00:51]} Bf4 {[%emt 0:01:35]} (33... Bxd4+ 34. Rxd4 Rxc6 35. Rxc6 Bxc6 36. Rxg4+ Kh8 37. Bc5) 34. Re1 {[%emt 0:03:08]} Bxc6 {[%emt 0:02:30]} 35. Nxc6 {[%emt 0:00:13]} Rxc6 {[%emt 0:00:12]} 36. Bc5 {[%emt 0:00:12]} Re8 {[%emt 0:02:08]} (36... Ra8 $16 {was called for.}) 37. Rd4 $18 {[%emt 0:00:27]} Bh6 {[%emt 0:09:04]} (37... Bc7 {keeps fighting.} 38. Rxg4+ Kh8) 38. Rxg4+ $18 {[%emt 0:00:18]} Bg7 {[%emt 0:00:03]} 39. Bd4 {[%emt 0:02:11]} e5 {[%emt 0:00:07]} 40. Rxe5 {[%emt 0:02:18]} ({Don't take} 40. Bxe5 f6 $18) 40... Rxe5 {[%emt 0:02:59]} 41. Bxe5 {[%emt 0:00:05]} f6 {[%emt 0:00:00]} 42. Bb2 {[%emt 0:03:29]} Kf7 {[%emt 0:01:38]} 43. b5 {[%emt 0:02:09]} Rc2 {[%emt 0:00:01]} 44. Rb4 {[%emt 0:01:55]} Bf8 {[%emt 0:00:02]} 45. Rb3 {[%emt 0:00:16]} Bc5+ {[%emt 0:00:10]} 46. Kh1 {[%emt 0:01:01]} Bb6 {[%emt 0:02:27]} (46... Rd2 {was necessary.} 47. g3 Rd1+ 48. Kg2 Rd2+ 49. Kf1 Bb6) 47. g3 {[%emt 0:00:47]} Ke6 {[%emt 0:00:08]} 48. Rc3 {[%emt 0:00:44]} Rxb2 {[%emt 0:03:33]} 49. Rc6+ {[%emt 0:00:07]} Kf5 {[%emt 0:01:38]} 50. Rxb6 {[%emt 0:00:13]} h5 $2 {[%emt 0:00:09]} (50... Kg4 51. Rxf6 Rxb5 52. Rf4+ Kg5 53. h4+ Kg6) 51. a4 $18 {[%emt 0:00:56]} Ra2 {[%emt 0:04:00]} 52. Ra6 {[%emt 0:00:51]} Kg4 {[%emt 0:07:21]} 53. Rxf6 {[%emt 0:01:03]} Kh3 {[%emt 0:00:01]} 54. Kg1 {[%emt 0:00:48]} Rxa4 {[%emt 0:00:05]} 55. Rf4 {[%emt 0:00:50]} Ra1+ {[%emt 0:00:04]} 56. Kf2 {[%emt 0:00:06]} Ra2+ {[%emt 0:00:10]} 57. Kf3 {[%emt 0:00:40]} Ra3+ {[%emt 0:00:09]} 58. Ke4 {[%emt 0:00:24]} Kxh2 {[%emt 0:00:26]} 59. Rh4+ {[%emt 0:00:13]} Kxg3 {[%emt 0:00:05]} 60. Rxh5 {[%emt 0:00:07]} Kg4 {[%emt 0:00:49]} 61. Rc5 {[%emt 0:00:54]} Rb3 {[%emt 0:00:41]} 62. Kd5 {[%emt 0:00:18]} Rb1 {[%emt 0:00:20]} 63. Kc6 {[%emt 0:00:30]} 1-0

[Event "1000GM Schev-C-A February 2024"]
[Site "Santa Clara"]
[Date "2024.02.25"]
[Round "3.1"]
[White "Tang, Dylan"]
[Black "Arenas, David"]
[Result "1/2-1/2"]
[ECO "C97"]
[WhiteElo "2206"]
[BlackElo "2406"]
[Annotator "TA"]
[PlyCount "101"]
[EventDate "2024.02.13"]
[EventType "schev"]
[EventCountry "USA"]
[SourceTitle "playchess.com"]
[Source "ChessBase"]
[SourceQuality "1"]
[TimeControl "5400+30"]

{[%evp 25,101,30,26,19,27,12,33,25,13,14,16,-9,16,-26,0,-14,-11,-56,-17,-107,-84,-79,-79,-90,-75,-93,-82,-90,-91,-119,-129,-112,-81,-116,-137,-120,-127,-164,-89,-225,-220,-206,-197,-207,-206,-203,-206,-253,-254,-270,-246,-497,-465,-2045,-1992,-2962,-1727,-2206,-1751,-1472,-279,-276,0,0,0,0,0,0,0,0,0,0,0,0,0,0,0,0]} 1. e4 e5 2. Nf3 Nc6 3. Bb5 a6 4. Ba4 Nf6 5. O-O Be7 6. Re1 b5 7. Bb3 d6 8. c3 O-O 9. h3 Na5 10. Bc2 c5 11. d4 Qc7 12. Nbd2 Be6 13. d5 Bd7 14. Nf1 Rfb8 15. N3h2 Ne8 16. f4 {White is slightly better.} exf4 17. Bxf4 Nc4 18. Qc1 Bf6 19. Bd1 Ne5 20. Be2 {Wards off Nd3} b4 21. c4 a5 22. Ne3 (22. Bxe5 $11 {remains equal.} Bxe5 23. Nf3) 22... a4 $17 23. Bg3 a3 24. b3 Ng6 25. Rb1 Bc3 $36 {[%mdl 2048] Black has strong initiative.} 26. Rf1 Nf6 27. Bf3 {[%emt 0:13:30]} Re8 {[%emt 0:13:30]} 28. Qc2 {[%emt 0:00:30]} Re7 {[%emt 0:00:30]} 29. Nf5 {[%emt 0:00:30]} Bxf5 {[%emt 0:00:30]} 30. exf5 {[%emt 0:00:30]} Ne5 {[%emt 0:00:30] Hoping for ...Nxf3+.} 31. Bh4 {[%emt 0:00:30]} Rae8 {[%emt 0:00:30]} (31... Nxf3+ $1 $19 32. Nxf3 Rae8) 32. Bxf6 {[%emt 0:00:30]} (32. Bd1 $17) 32... Nxf3+ $19 {[%emt 0:00:30]} (32... gxf6 33. Bd1 $17) 33. Nxf3 {[%emt 0:00:30]} Bxf6 {[%emt 0:00:30]} 34. Rbe1 {[%emt 0:00:30] [#]} Bc3 $1 {[%emt 0:00:30]} 35. Rxe7 {[%emt 0:00:30]} Qxe7 {[%emt 0:00:30]} 36. Rf2 {[%emt 0:00:30] White is weak on the dark squares} Qe3 {[%emt 0:00:30] Dodges Qd3} 37. Kh1 {[%emt 0:00:30]} h6 {[%emt 0:00:30]} 38. Ng1 $2 {[%emt 0:00:30]} (38. f6) 38... Bd4 {[%emt 0:00:30]} 39. Qe2 {[%emt 0:00:30]} (39. Rf1 $142 Qc3 40. Qd1) 39... Qxf2 {[%emt 0:00:30][%csl Gd4][%cal Rf2g1]} 40. Qxe8+ {[%emt 0:00:30][%mdl 4096] Endgame. KQB-KQN} Kh7 {[%emt 0:00:30]} 41. Nf3 {[%emt 0:00:30]} Qxa2 {[%emt 0:00:30] Threatens to win with ...Qb1+.} 42. Qxf7 {[%emt 0:00:30]} Qa1+ $2 {[%emt 0:00:30]} ({And not} 42... Qxb3 43. Qg6+ Kg8 44. Qe6+ (44. Qe8+ Kh7 $11) 44... Kh8 45. Qe8+ Kh7 46. Qg6+ Kh8 47. Qe8+ Kh7 48. Ng5+ hxg5 49. Qh5+ Kg8 50. Qe8+ Kh7 51. Qh5+ Kg8 52. Qe8+ Kh7 $11) (42... Qe2 {( -> ...a2)} 43. Nxd4 cxd4 44. Qg6+ Kg8) 43. Kh2 {[%emt 0:00:30] [#]} Be5+ {[%emt 0:00:30]} (43... Bg1+ $1 $19 44. Kg3 (44. Nxg1 $2 {is the wrong capture.} Qe5+ 45. Kh1 a2 $19) 44... Qf6 45. Qxf6 gxf6) 44. g3 $1 $11 {[%emt 0:00:30] The position is equal.} Qb2+ {[%emt 0:00:30]} 45. Kh1 $1 {[%emt 0:00:30]} Qb1+ {[%emt 0:00:30]} 46. Kh2 {[%emt 0:00:30]} Qc2+ {[%emt 0:00:30]} 47. Kh1 $1 {[%emt 0:00:30]} Qc1+ {[%emt 0:00:30]} 48. Kg2 {[%emt 0:00:30]} Qc2+ {[%emt 0:00:30]} 49. Kh1 {[%emt 0:00:30]} Qd1+ {[%emt 0:00:30]} 50. Ng1 {[%emt 0:00:30]} a2 {[%emt 0:00:30][%cal Od1g1]} (50... Qb1 $5 51. Qg6+ $8 Kg8 52. Qe8+ Kh7 53. Qg6+ Kg8 54. Qe8+ Kh7 55. Qg6+ $11) 51. Qg6+ {[%emt 0:00:30] White happily takes the draw.   Weighted Error Value: White=0.37/Black=0.21 (precise) .  Mistake:       	White=4     	Black=1      Inaccurate:     	White=4     	Black=2      OK:         	White=7     	Black=9      Best:        	White=3     	Black=7      Strong:       	White=3     	---} 1/2-1/2

[Event "1000GM Schev-C-A February 2024"]
[Site "Santa Clara"]
[Date "2024.02.25"]
[Round "3.1"]
[White "Tang, Dylan"]
[Black "Arenas, David"]
[Result "*"]
[ECO "C01"]
[WhiteElo "2206"]
[BlackElo "2406"]
[Annotator "RC"]
[PlyCount "130"]
[EventDate "2024.02.13"]
[EventType "schev"]
[EventCountry "USA"]
[SourceTitle "playchess.com"]
[Source "ChessBase"]
[SourceQuality "1"]
[TimeControl "5400+30"]

1. c4 {[%emt 0:02:48]} e6 {[%emt 0:00:21]} 2. e4 {[%emt 0:00:06]} d5 {[%emt 0:01:10]} 3. exd5 {[%emt 0:00:07]} exd5 {[%emt 0:00:04]} 4. d4 {[%emt 0:00:04]} Nf6 {[%emt 0:01:18]} 5. Nc3 {[%emt 0:01:54]} Be7 {[%emt 0:02:00]} 6. cxd5 {[%emt 0:03:12]} Nbd7 {[%emt 0:04:04]} 7. Nf3 {[%emt 0:05:14]} Nb6 {[%emt 0:02:00]} 8. Bb5+ {[%emt 0:00:35]} Bd7 {[%emt 0:01:17]} 9. Bd3 {[%emt 0:00:04]} Nbxd5 {[%emt 0:05:38]} 10. O-O {[%emt 0:00:17]} Bg4 {[%emt 0:03:11]} 11. Re1 {[%emt 0:03:56]} O-O {[%emt 0:01:49]} 12. Bg5 {[%emt 0:00:40]} h6 {[%emt 0:09:08]} 13. Bh4 {[%emt 0:01:57]} Re8 {[%emt 0:04:06]} 14. h3 {[%emt 0:03:52]} Be6 {[%emt 0:10:30]} 15. Ne5 {[%emt 0:02:43]} Nf4 {[%emt 0:02:36]} 16. Bf1 {[%emt 0:01:18]} N6d5 {[%emt 0:01:14]} 17. Bg3 {[%emt 0:03:18]} Bd6 {[%emt 0:13:26]} 18. Qf3 {[%emt 0:03:55]} Qf6 {[%emt 0:03:42]} 19. Kh2 {[%emt 0:03:18]} Nxc3 {[%emt 0:02:30]} 20. bxc3 {[%emt 0:00:44]} Nd5 {[%emt 0:00:11]} 21. c4 {[%emt 0:02:15]} Qxf3 {[%emt 0:01:05]} 22. Nxf3 {[%emt 0:01:36]} Bxg3+ {[%emt 0:01:17]} 23. fxg3 {[%emt 0:04:05]} Nb6 {[%emt 0:02:37]} 24. c5 {[%emt 0:09:28]} Nd7 {[%emt 0:02:06]} 25. Nd2 {[%emt 0:03:21]} Bd5 {[%emt 0:02:41]} 26. Bb5 {[%emt 0:00:16]} c6 {[%emt 0:00:36]} 27. Bc4 {[%emt 0:00:05]} Bxc4 {[%emt 0:02:09]} 28. Nxc4 {[%emt 0:00:11]} b6 {[%emt 0:00:03]} 29. Nd6 {[%emt 0:01:51]} Rxe1 {[%emt 0:00:20]} 30. Rxe1 {[%emt 0:00:04]} Kf8 {[%emt 0:00:54]} 31. cxb6 {[%emt 0:00:51]} axb6 {[%emt 0:00:47]} 32. Rc1 {[%emt 0:00:42]} c5 {[%emt 0:00:51]} 33. dxc5 {[%emt 0:00:26]} Nxc5 {[%emt 0:00:06]} 34. Rc2 {[%emt 0:00:29]} Ke7 {[%emt 0:21:43]} 35. Nf5+ {[%emt 0:00:22]} Kf6 {[%emt 0:00:00]} 36. g4 {[%emt 0:00:08]} h5 {[%emt 0:00:00]} 37. Ne3 {[%emt 0:00:04]} Kg6 {[%emt 0:00:00]} 38. gxh5+ {[%emt 0:03:10]} Kxh5 {[%emt 0:00:00]} 39. Nc4 {[%emt 0:00:04]} Na4 {[%emt 0:00:00]} 40. g4+ {[%emt 0:02:50]} Kh6 {[%emt 0:00:00]} 41. Nd6 {[%emt 0:00:20]} Ra7 {[%emt 0:00:00]} 42. h4 {[%emt 0:00:27]} Nc5 {[%emt 0:04:00]} 43. Rf2 {[%emt 0:00:24]} f6 {[%emt 0:00:00]} 44. Re2 {[%emt 0:00:39]} Nd3 {[%emt 0:01:00]} 45. Kg3 {[%emt 0:05:21]} Nc1 {[%emt 0:00:00]} 46. Re8 {[%emt 0:03:12]} Kh7 {[%emt 0:00:00]} 47. h5 {[%emt 0:00:17]} Ra3+ {[%emt 0:00:00]} 48. Kh4 {[%emt 0:00:44]} g5+ {[%emt 0:00:00]} 49. hxg6+ {[%emt 0:00:19]} Kxg6 {[%emt 0:00:00]} 50. Rg8+ {[%emt 0:02:36]} Kh7 {[%emt 0:00:00]} 51. Rc8 {[%emt 0:00:12]} Ne2 {[%emt 0:03:30]} 52. Rc7+ {[%emt 0:00:46]} Kg8 {[%emt 0:00:00]} 53. g5 {[%emt 0:06:16]} fxg5+ {[%emt 0:00:00]} 54. Kxg5 {[%emt 0:00:07]} Rg3+ {[%emt 0:00:00]} 55. Kf5 {[%emt 0:00:43]} Rf3+ {[%emt 0:00:00]} 56. Ke5 {[%emt 0:01:09]} Re3+ {[%emt 0:00:00]} 57. Kd5 {[%emt 0:02:35]} Nf4+ {[%emt 0:00:00]} 58. Kc6 {[%emt 0:00:59]} Rc3+ {[%emt 0:00:00]} 59. Kb7 {[%emt 0:00:10]} Rxc7+ {[%emt 0:00:00]} 60. Kxc7 {[%emt 0:00:28]} Nd5+ {[%emt 0:00:00]} 61. Kb7 {[%emt 0:02:34]} Nc3 {[%emt 0:00:00]} 62. a3 {[%emt 0:18:52]} Nb1 {[%emt 0:00:00]} 63. Nb5 {[%emt 0:00:00]} Nxa3 {[%emt 0:00:00]} 64. Nxa3 {[%emt 0:00:00]} b5 {[%emt 0:00:00]} 65. Nxb5 {[%emt 0:00:00]} Kh8 {[%emt 0:00:00]} *

[Event "1000GM Schev-C-A February 2024"]
[Site "Santa Clara"]
[Date "2024.02.25"]
[Round "3.2"]
[White "Min, Ryan"]
[Black "Jimenez Garcia, Emmanuel"]
[Result "0-1"]
[ECO "A21"]
[WhiteElo "2063"]
[BlackElo "2394"]
[Annotator "TA"]
[PlyCount "106"]
[EventDate "2024.02.13"]
[EventType "schev"]
[EventCountry "USA"]
[SourceTitle "playchess.com"]
[Source "ChessBase"]
[SourceQuality "1"]
[TimeControl "5400+30"]

{[%evp 13,106,4,5,-27,-19,-40,-54,-50,-55,-62,-79,-68,-63,-133,-56,-52,-62,-60,-13,-14,-14,-41,-7,-12,-12,-129,-128,-305,-313,-302,-305,-333,-298,-592,-602,-572,-582,-764,-771,-704,-669,-595,-436,-448,-401,-340,-317,-297,-285,-570,-375,-345,-347,-359,-322,-364,-357,-404,-404,-1247,-1291,-1133,-1207,-1365,-1085,-2502,-3265,-29964,-29965,-29957,-29959,-29949,-29953,-12838,-12833,-12822,-12839,-11872,-5517,-5975,-4472,-4472,-4309,-29989,-29990,-29990,-29991,-29991,-29992,-29994,-29995,-29995,-29996,-29998,-29999]} 1. d4 {[%emt 0:00:02]} d6 {[%emt 0:00:16]} 2. c4 {[%emt 0:00:05]} e5 {[%emt 0:00:04]} 3. Nf3 {[%emt 0:00:06]} e4 {[%emt 0:00:05]} 4. Ng5 {[%emt 0:00:13]} f5 {[%emt 0:00:15]} 5. Nc3 {[%emt 0:00:09]} Be7 {[%emt 0:00:17]} 6. Nh3 {[%emt 0:01:28]} Nf6 {[%emt 0:00:12]} 7. g3 {[%emt 0:04:00]} c6 {[%emt 0:00:14]} 8. Bf4 {[%emt 0:03:24]} h6 {[%emt 0:00:33]} 9. Bg2 {[%emt 0:08:42]} g5 {[%emt 0:00:20]} 10. Be3 {[%emt 0:01:38] Black is slightly better.} d5 {[%emt 0:00:44]} 11. c5 {[%emt 0:01:20]} b6 {[%emt 0:05:34]} 12. b4 {[%emt 0:06:40]} a5 {[%emt 0:00:32]} 13. b5 {[%emt 0:06:10]} (13. a3 $15) 13... Ng4 {[%emt 0:03:32]} ({Better is} 13... cxb5 $17 {Hoping for ...Ba6.} 14. Nxb5 O-O) 14. bxc6 $1 $15 {[%emt 0:09:31]} Nxe3 {[%emt 0:03:43]} 15. fxe3 {[%emt 0:00:09][%cal Oc6c7] [#] c7! would now be deadly.} Nxc6 {[%emt 0:05:37]} (15... bxc5 16. c7 Qxc7 17. Nxd5 $11) (15... Be6 $1 $15 16. Qb3 Nxc6 17. cxb6 a4) 16. Qa4 $11 {[%emt 0:05:10]} Bd7 {[%emt 0:07:42]} 17. Nxd5 {[%emt 0:05:31]} bxc5 {[%emt 0:00:03]} 18. Qc4 {[%emt 0:05:41]} cxd4 {[%emt 0:03:46]} (18... Be6 19. Nc7+ Qxc7 20. Qxe6 $16) 19. Nxe7 {[%emt 0:02:36]} (19. O-O $11 Rc8 20. Rad1) 19... Qxe7 $17 {[%emt 0:00:12]} 20. exd4 $2 {[%emt 0:00:08] Loses the game.} (20. O-O $17) 20... Qb4+ $19 {[%emt 0:01:15]} 21. Qxb4 {[%emt 0:00:56]} axb4 {[%emt 0:00:02]} ({Don't play} 21... Nxb4 22. O-O $19) 22. e3 {[%emt 0:06:37]} Ra3 {[%emt 0:00:14]} 23. Kd2 $2 {[%emt 0:08:21]} (23. O-O) 23... Ke7 {[%emt 0:00:47]} 24. Rhb1 {[%emt 0:05:35]} Rha8 {[%emt 0:00:14]} 25. Rb2 {[%emt 0:01:31] [#]} b3 $1 {[%emt 0:04:52][%mdl 512]} 26. Bf1 {[%emt 0:01:41]} Rxa2 {[%emt 0:01:06]} 27. Rab1 {[%emt 0:00:10]} Rxb2+ {[%emt 0:02:31]} 28. Rxb2 {[%emt 0:00:05]} Ra1 {[%emt 0:00:04]} 29. Bc4 {[%emt 0:02:37]} Na5 {[%emt 0:03:15]} 30. Bxb3 {[%emt 0:01:36]} f4 {[%emt 0:05:04]} 31. Nf2 {[%emt 0:01:10]} (31. Nxf4 {was the only chance.} gxf4 32. gxf4 Nxb3+ 33. Rxb3 Ra2+ 34. Kc3) 31... fxe3+ {[%emt 0:00:35]} 32. Kxe3 {[%emt 0:00:36]} Ra3 {[%emt 0:00:02]} 33. Kxe4 {[%emt 0:01:38]} Rxb3 {[%emt 0:06:19]} 34. Rxb3 {[%emt 0:00:22]} Nxb3 {[%emt 0:00:01]} 35. h4 {[%emt 0:02:19]} Nd2+ {[%emt 0:01:06]} 36. Ke3 {[%emt 0:03:32]} (36. Ke5 $142) 36... Nf1+ {[%emt 0:00:55]} 37. Kf3 {[%emt 0:00:48]} Bc6+ {[%emt 0:02:25]} 38. Kg4 {[%emt 0:00:16]} Kf6 {[%emt 0:00:03] ...Bg2 is the strong threat.} 39. hxg5+ {[%emt 0:02:52]} hxg5 {[%emt 0:00:02]} 40. Nd3 {[%emt 0:00:15]} Ne3+ {[%emt 0:00:32]} 41. Kh3 {[%emt 0:00:23]} g4+ {[%emt 0:04:14]} 42. Kh2 {[%emt 0:02:23]} Kf5 {[%emt 0:01:08]} 43. Ne5 {[%emt 0:00:46]} Bf3 {[%emt 0:00:53] ( -> ...Ke4)} 44. Kg1 {[%emt 0:00:22]} Ke4 {[%emt 0:00:10]} 45. Kf2 {[%emt 0:00:28]} Nd1+ {[%emt 0:00:39]} (45... Kxd4 46. Nxf3+ gxf3 47. Kxf3 $11) (45... Nf5 $142 46. Nc6 Kd5 (46... Nxd4 $2 47. Ne7 $19)) 46. Ke1 {[%emt 0:00:20]} Nb2 {[%emt 0:00:31]} ({Not} 46... Kxd4 47. Nxf3+ Ke3 (47... gxf3 48. Kxd1 Ke4 49. g4 $11) 48. Ne5 $11) 47. Kd2 {[%emt 0:00:39] Against Nd3} Kxd4 {[%emt 0:00:07]} 48. Nxg4 {[%emt 0:00:07]} Bxg4 {[%emt 0:00:41] Black mates.} 49. Kc2 {[%emt 0:00:18]} Nd3 {[%emt 0:00:42]} 50. Kd2 {[%emt 0:00:25]} Nb4 {[%emt 0:00:21]} 51. Kc1 {[%emt 0:00:29]} Kc3 {[%emt 0:00:02]} 52. Kb1 {[%emt 0:00:10]} Bf5+ {[%emt 0:00:22]} 53. Kc1 {[%emt 0:00:10]} Bc2 {[%emt 0:00:05] Weighted Error Value: White=0.75/Black=0.22 (precise) .  Loses game:     	White=1     	---        Mistake:       	White=5     	Black=2      Inaccurate:     	---       	Black=1      OK:         	White=7     	Black=10     Best:        	White=3     	Black=3      Strong:       	White=1     	---} 0-1

[Event "1000GM Schev-C-A February 2024"]
[Site "Santa Clara"]
[Date "2024.02.25"]
[Round "3.3"]
[White "Cardoso Cardoso, Jose Gabriel"]
[Black "Atwell, Rose"]
[Result "1-0"]
[ECO "C42"]
[WhiteElo "2477"]
[BlackElo "2104"]
[Annotator "RC"]
[PlyCount "141"]
[EventDate "2024.02.13"]
[EventType "schev"]
[EventCountry "USA"]
[SourceTitle "playchess.com"]
[Source "ChessBase"]
[SourceQuality "1"]
[TimeControl "5400+30"]

1. e4 {[%emt 0:07:06]} e5 {[%emt 0:00:01]} 2. Nf3 {[%emt 0:00:20]} Nf6 {[%emt 0:00:06]} 3. Nxe5 {[%emt 0:00:28]} d6 {[%emt 0:00:07]} 4. Nf3 {[%emt 0:00:09]} Nxe4 {[%emt 0:00:06]} 5. Nc3 {[%emt 0:00:20]} Nxc3 {[%emt 0:00:07]} 6. dxc3 {[%emt 0:00:04]} Be7 {[%emt 0:00:13]} 7. Be3 {[%emt 0:02:01]} O-O {[%emt 0:00:11]} 8. Qd2 {[%emt 0:00:15]} Nd7 {[%emt 0:00:36]} 9. O-O-O {[%emt 0:00:26]} Nf6 {[%emt 0:00:07]} 10. Bd3 {[%emt 0:01:51]} c5 {[%emt 0:01:01]} 11. Bg5 {[%emt 0:03:46]} Be6 {[%emt 0:05:39]} 12. Rhe1 {[%emt 0:04:41]} c4 {[%emt 0:16:30]} 13. Bf1 {[%emt 0:04:33]} d5 {[%emt 0:02:31]} 14. Nd4 {[%emt 0:02:49]} Bd7 {[%emt 0:02:38]} 15. g3 {[%emt 0:19:49]} h6 {[%emt 0:06:07]} 16. Bxf6 {[%emt 0:00:35]} Bxf6 {[%emt 0:00:03]} 17. Kb1 {[%emt 0:00:21]} Qa5 {[%emt 0:06:33]} 18. Bg2 {[%emt 0:01:08]} Rfd8 {[%emt 0:01:59]} 19. Re3 {[%emt 0:06:26]} Qc5 {[%emt 0:06:32]} 20. Qe2 {[%emt 0:09:38]} b5 {[%emt 0:07:01]} 21. Qh5 {[%emt 0:00:08]} Bc8 {[%emt 0:02:54]} 22. Rde1 {[%emt 0:15:14]} Bb7 {[%emt 0:05:10]} 23. Nf5 {[%emt 0:00:06]} Bc6 {[%emt 0:07:58]} 24. Qg4 {[%emt 0:03:13]} Kf8 {[%emt 0:06:35]} 25. Nd4 {[%emt 0:06:03]} b4 {[%emt 0:05:25]} 26. Qf5 {[%emt 0:00:31]} Kg8 {[%emt 0:01:47]} 27. Be4 {[%emt 0:00:31]} g6 {[%emt 0:03:23]} 28. Qxf6 {[%emt 0:00:02]} Rd6 {[%emt 0:00:06]} 29. Qe5 {[%emt 0:01:08]} f6 {[%emt 0:02:38]} 30. Bxd5+ {[%emt 0:04:52]} Bxd5 {[%emt 0:01:40]} 31. Qf4 {[%emt 0:01:04]} bxc3 {[%emt 0:01:19]} 32. Rxc3 {[%emt 0:01:03]} Bf7 {[%emt 0:01:27]} 33. Nb3 {[%emt 0:01:36]} Qb4 {[%emt 0:01:45]} 34. a3 {[%emt 0:00:45]} Qb6 {[%emt 0:00:48]} 35. Rxc4 {[%emt 0:02:35]} g5 {[%emt 0:02:52]} 36. Qf3 {[%emt 0:00:16]} Bd5 {[%emt 0:00:05]} 37. Qc3 {[%emt 0:01:05]} Bxc4 {[%emt 0:00:09]} 38. Qxc4+ {[%emt 0:00:03]} Kf8 {[%emt 0:00:29]} 39. Qe4 {[%emt 0:01:50]} Rad8 {[%emt 0:00:27]} 40. Re3 {[%emt 0:00:30]} Qc7 {[%emt 0:01:55]} 41. f4 {[%emt 0:00:30]} Qf7 {[%emt 0:00:40]} 42. Qb4 {[%emt 0:00:54]} Kg8 {[%emt 0:00:24]} 43. h4 {[%emt 0:00:35]} Rd1+ {[%emt 0:00:39]} 44. Ka2 {[%emt 0:00:01]} R1d4 {[%emt 0:00:03]} 45. Qa5 {[%emt 0:00:49]} R4d5 {[%emt 0:00:32]} 46. Qa6 {[%emt 0:00:12]} R5d6 {[%emt 0:00:17]} 47. Qa5 {[%emt 0:00:35]} Rd5 {[%emt 0:00:34]} 48. Qc3 {[%emt 0:00:13]} a5 {[%emt 0:00:39]} 49. Re4 {[%emt 0:00:01]} Ra8 {[%emt 0:01:40]} 50. a4 {[%emt 0:00:01]} Rb8 {[%emt 0:00:27]} 51. hxg5 {[%emt 0:00:25]} hxg5 {[%emt 0:00:12]} 52. Rc4 {[%emt 0:00:16]} Rb7 {[%emt 0:03:23]} 53. Rc8+ {[%emt 0:01:20]} Kg7 {[%emt 0:00:00]} 54. fxg5 {[%emt 0:00:55]} Rxg5 {[%emt 0:00:00]} 55. Rc5 {[%emt 0:00:34]} Rxc5 {[%emt 0:00:00]} 56. Qxc5 {[%emt 0:00:01]} Rc7 {[%emt 0:00:00]} 57. Qxa5 {[%emt 0:00:42]} Rxc2 {[%emt 0:00:00]} 58. Qb5 {[%emt 0:00:29]} Rg2 {[%emt 0:00:00]} 59. a5 {[%emt 0:01:20]} Rxg3 {[%emt 0:00:17]} 60. a6 {[%emt 0:00:06]} Rg5 {[%emt 0:00:12]} 61. Qb6 {[%emt 0:00:24]} Qd7 {[%emt 0:01:17]} 62. Ka3 {[%emt 0:00:49]} Qe7+ {[%emt 0:00:28]} 63. Qb4 {[%emt 0:00:19]} Qa7 {[%emt 0:00:27]} 64. Qb7+ {[%emt 0:00:24]} Qxb7 {[%emt 0:00:02]} 65. axb7 {[%emt 0:00:03]} Rb5 {[%emt 0:00:09]} 66. Nc5 {[%emt 0:00:07]} f5 {[%emt 0:00:41]} 67. Ka4 {[%emt 0:00:23]} Rb6 {[%emt 0:00:27]} 68. b4 {[%emt 0:00:15]} f4 {[%emt 0:00:46]} 69. Ka5 {[%emt 0:00:05]} Rxb7 {[%emt 0:00:05]} 70. Nxb7 {[%emt 0:00:03]} f3 {[%emt 0:00:05]} 71. Nd6 {[%emt 0:00:04]} 1-0